bitfinex-derivatives/quotes_ETHF0:USTF0_20251103
["timestamp","ask_amount","ask_price","bid_price","bid_amount"]
[1762200605994,0.49764,3618.1,3617.4,0.1436]
[1762200606193,1.24397,3618.5,3617.4,0.1436]
[1762200606497,0.49761,3618.3,3618.1,0.49762]
[1762200606698,0.1312,3619.2,3618.0,0.1436]
[1762200606891,0.49753,3618.9,3618.0,0.1436]
[1762200607288,0.49753,3618.9,3618.6,0.49756]
[1762200607695,0.49753,3618.9,3618.7,0.49755]
[1762200607993,1.24359,3619.6,3618.6,0.1436]
[1762200607994,0.49754,3618.8,3618.6,0.1436]
[1762200609596,0.4975,3619.1,3618.7,0.49754]
[1762200609894,0.49752,3618.9,3618.7,0.49755]
[1762200610391,1.2436,3619.6,3618.6,0.1436]
[1762200610591,0.50036159,3619.0,3618.8,0.49753]
[1762200610997,0.50036159,3619.0,3618.6,0.1436]
[1762200611197,0.00285159,3619.0,3618.6,0.1436]
[1762200611704,0.30375247,3618.9,3618.0,0.1436]
[1762200611892,0.49762,3618.2,3618.0,0.1436]
[1762200612200,0.49761,3618.3,3618.1,0.49762]
[1762200612601,0.00285159,3619.0,3618.5,0.49757]
[1762200612801,0.00285159,3619.0,3618.0,0.1436]
[1762200612802,0.49758,3618.5,3618.0,0.1436]
[1762200613194,0.00285159,3619.0,3618.6,0.49756]
[1762200613399,0.8013159,3618.9,3618.7,0.49755]
[1762200613603,0.8013359,3618.8,3618.7,0.49755]
[1762200613900,0.49754,3618.8,3618.7,0.49755]
[1762200614201,0.49755,3618.7,3618.6,0.64116]
[1762200614699,0.49755,3618.7,3618.6,0.88386]
[1762200614999,0.49755,3618.7,3618.6,0.3863]
[1762200615196,0.49755,3618.7,3618.6,0.1436]
[1762200615392,0.2445,3618.5,3618.0,0.1436]
[1762200615594,1.24388,3618.7,3618.1,0.49763]
[1762200615799,0.49763,3618.1,3618.0,0.3795]
[1762200615995,1.24399,3618.4,3617.5,0.49771]
[1762200616194,0.49773,3617.4,3617.3,0.49774]
[1762200616397,1.2442,3617.8,3616.9,10.218]
[1762200616398,0.49775,3617.3,3617.2,0.49776]
[1762200616596,0.49773,3617.4,3617.3,0.49773]
[1762200617107,0.49777,3617.2,3617.1,0.49777]
[1762200617308,1.24405,3618.2,3617.2,0.49775]
[1762200617608,1.24415,3618.0,3617.4,0.1408]
[1762200617804,0.30344728,3617.9,3617.4,0.1408]
[1762200618004,0.30344728,3617.8,3617.4,0.1408]
[1762200618205,0.49771,3617.5,3617.4,0.1408]
[1762200618499,0.49769,3617.7,3617.6,0.73359]
[1762200618707,0.49769,3617.7,3617.6,0.7336]
[1762200619002,1.24414,3618.0,3616.9,10.218]
[1762200619195,0.49777,3617.2,3616.9,10.218]
[1762200619401,0.49776,3617.2,3617.0,0.49778]
[1762200619599,0.49776,3617.2,3617.1,0.49777]
[1762200619799,1.24416,3617.9,3617.2,0.49776]
[1762200619995,1.24416,3617.9,3617.3,0.49774]
[1762200620606,1.24428,3617.6,3616.9,10.4539]
[1762200620800,0.49778,3617.0,3616.8,0.1436]
[1762200621195,0.49779,3616.9,3616.8,0.1436]
[1762200621400,0.74233,3616.6,3616.5,0.00262616]
[1762200622009,1.04582801,3616.6,3616.5,0.00262616]
[1762200622209,0.74233,3616.6,3616.5,0.00262616]
[1762200622505,0.49796,3615.7,3615.6,0.1408]
[1762200622906,0.49795,3615.9,3615.6,0.1408]
[1762200623109,1.24448,3617.0,3615.8,0.73385]
[1762200623408,0.49791,3616.1,3615.8,0.2359]
[1762200623607,0.49793,3615.9,3615.8,0.2359]
[1762200623804,0.49793,3615.9,3615.8,0.23794343]
[1762200624197,0.49793,3615.9,3615.8,0.00204343]
[1762200624198,0.74243,3615.9,3615.8,0.00204343]
[1762200624702,0.49804,3615.1,3615.0,0.1408]
[1762200625705,0.49803,3615.2,3615.0,0.1408]
[1762200625904,0.49803,3615.2,3615.0,0.14284571]
[1762200627508,0.49796,3615.7,3615.0,0.14284571]
[1762200627709,0.49795,3615.8,3615.6,0.1408]
[1762200629605,0.49802,3615.3,3615.0,2.05520571]
[1762200630007,0.49803,3615.3,3615.0,1.55714571]
[1762200630306,0.498,3615.5,3615.4,0.2279]
[1762200635520,0.49799,3615.5,3615.4,0.2279]
[1762200636517,0.49799,3615.5,3615.4,0.7259]
[1762200636723,0.49799,3615.5,3615.4,0.2279]
[1762200636920,0.49799,3615.5,3615.4,0.7259]
[1762200638217,0.0027746,3616.1,3615.6,0.2279]
[1762200638521,0.49798,3615.6,3615.5,0.3695]
[1762200639021,0.49793,3616.0,3615.8,0.49795]
[1762200639322,0.49794,3615.9,3615.8,0.72585]
[1762200639719,2.61892,3618.0,3616.8,0.72571]
[1762200639922,0.49777,3617.1,3617.0,0.1416]
[1762200640824,0.4998474,3617.1,3617.0,0.1416]
[1762200641617,0.4998474,3617.1,3617.0,0.3695]
[1762200641818,0.49784,3616.6,3616.5,0.86735]
[1762200642224,0.49782,3616.8,3616.6,0.49783]
[1762200642418,0.49779,3616.9,3616.8,0.2279]
[1762200642623,0.0020774,3617.1,3617.0,0.86728]
[1762200642834,0.49771,3617.5,3617.4,0.2279]
[1762200643117,0.1317,3618.5,3617.0,0.1416]
[1762200643118,0.49768,3617.8,3617.5,0.63931]
[1762200643323,0.49769,3617.7,3617.5,0.1416]
[1762200643816,0.50036973,3617.7,3617.5,0.1416]
[1762200645118,0.50036973,3617.7,3617.6,0.2279]
[1762200645323,0.50036973,3617.7,3617.6,0.23139986]
[1762200646128,0.50036973,3617.7,3617.6,0.72909986]
[1762200646518,0.00267973,3617.7,3617.6,0.72909986]
[1762200646725,0.49761,3618.3,3618.2,0.2264]
[1762200647721,0.49990986,3618.3,3618.2,0.2264]
[1762200650731,0.00229986,3618.3,3618.2,0.2264]
[1762200650933,0.00229986,3618.3,3618.2,0.72402]
[1762200651224,0.49751,3619.0,3618.9,0.2264]
[1762200651423,0.49751,3619.0,3618.9,0.72392]
[1762200651620,0.49749,3619.1,3619.0,0.1441]
[1762200652020,0.50000938,3619.1,3619.0,0.1441]
[1762200652229,0.49756,3618.6,3618.5,0.1441]
[1762200652533,0.49756,3618.6,3618.5,0.3705]
[1762200653225,0.49763,3618.1,3618.0,0.3705]
[1762200653427,0.49763,3618.1,3618.0,0.86814]
[1762200653621,0.00251938,3619.1,3619.0,0.1441]
[1762200653932,0.50000938,3619.1,3619.0,0.3705]
[1762200654130,0.50000938,3619.1,3619.0,0.86801]
[1762200654430,0.1314,3620.5,3619.6,0.72382]
[1762200654628,0.49734,3620.3,3620.2,0.2264]
[1762200654931,0.49734,3620.2,3620.0,0.1441]
[1762200655125,0.49734,3620.3,3620.0,0.1441]
[1762200655326,0.49734,3620.2,3620.0,0.1441]
[1762200655521,0.49936331,3620.2,3620.1,0.2264]
[1762200656133,0.00202331,3620.2,3620.1,0.2264]
[1762200657632,0.00202331,3620.2,3620.1,0.72375]
[1762200658035,0.49936331,3620.2,3620.1,0.72375]
[1762200658640,0.49735,3620.1,3620.0,0.1461305]
[1762200659137,0.72545,3620.1,3620.0,0.0020305]
[1762200659626,0.49735,3620.1,3620.0,0.1461305]
[1762200659831,0.72545,3620.1,3620.0,0.0020305]
[1762200660635,0.49735,3620.1,3620.0,0.1461305]
[1762200660932,0.49735,3620.1,3620.0,0.3725305]
[1762200661138,0.72545,3620.1,3620.0,0.0020305]
[1762200661332,0.72545,3620.1,3620.0,0.1461305]
[1762200661333,0.49735,3620.1,3620.0,0.1461305]
[1762200661939,0.72545,3620.1,3620.0,0.0020305]
[1762200663039,0.49749,3619.1,3619.0,0.1441]
[1762200663234,0.49753,3618.8,3618.7,0.416]
[1762200663430,0.49756,3618.6,3618.5,0.3705]
[1762200663634,0.49756,3618.6,3618.5,0.1441]
[1762200664042,0.49756,3618.6,3618.5,0.14615653]
[1762200664548,1.24367,3619.3,3618.5,0.14615653]
[1762200664940,0.49755,3618.7,3618.6,1.4561]
[1762200668547,0.72565,3618.7,3618.6,1.4561]
[1762200669544,0.49755,3618.7,3618.6,1.95366]
[1762200669741,0.72565,3618.7,3618.6,1.4561]
[1762200670347,1.02443154,3618.7,3618.6,1.4561]
[1762200670744,0.52688154,3618.7,3618.6,1.4561]
[1762200670948,0.00202331,3620.2,3619.0,0.1441]
[1762200671151,1.54229134,3620.1,3619.5,0.64154]
[1762200671346,0.49743,3619.7,3619.5,0.64154]
[1762200671546,0.00202331,3620.2,3619.6,0.49743]
[1762200671749,0.49737,3620.0,3619.7,0.49741]
[1762200671949,0.49738,3619.9,3619.8,0.49739]
[1762200672650,0.00202331,3620.2,3620.1,0.2264]
[1762200672851,0.49726,3620.8,3620.6,0.49729]
[1762200673053,0.49725,3620.9,3620.4,0.1441]
[1762200673250,1.24281,3621.9,3620.4,0.1441]
[1762200673449,0.29913321,3621.8,3621.2,0.49719]
[1762200673647,0.49729,3620.6,3620.4,8.6711]
[1762200673853,0.49968105,3620.6,3620.4,0.14686279]
[1762200674357,0.49968105,3620.6,3620.5,0.2264]
[1762200674757,0.49968105,3620.6,3620.4,0.14686279]
[1762200674953,0.49968105,3620.6,3620.4,0.00276279]
[1762200675259,0.53326985,3620.5,3620.4,0.00276279]
[1762200675850,0.49743,3619.6,3617.9,2.43533966]
[1762200676054,0.49755,3618.7,3618.6,1.8324]
[1762200676356,0.49755,3618.7,3618.6,1.6002]
[1762200676955,0.49755,3618.7,3618.6,1.60283148]
[1762200677155,0.49755,3618.7,3618.6,1.83503148]
[1762200677453,3.73084,3619.5,3618.7,0.2322]
[1762200677454,0.49755,3618.8,3618.7,0.2322]
[1762200678160,0.49755,3618.8,3618.6,1.60283148]
[1762200678355,0.49755,3618.8,3618.7,0.2322]
[1762200678959,0.49755,3618.8,3618.6,1.60283148]
[1762200682158,0.49746,3619.4,3619.2,0.1337]
[1762200682368,0.49745,3619.4,3619.3,0.2322]
[1762200683461,0.49747,3619.3,3619.2,0.1337]
[1762200683664,0.49755,3618.7,3618.6,1.83503148]
[1762200684166,0.49755,3618.7,3618.6,1.60283148]
[1762200685468,0.79713175,3618.7,3618.6,1.60283148]
[1762200686164,0.49755,3618.7,3618.6,1.60283148]
[1762200688066,0.49755,3618.7,3618.6,1.83503148]
[1762200690760,0.49755,3618.7,3618.6,1.60283148]
[1762200692167,0.49755,3618.7,3618.6,1.83403148]
[1762200692569,0.49755,3618.7,3618.6,1.60283148]
[1762200692975,0.49755,3618.7,3618.6,1.83403148]
[1762200695367,0.72825,3618.7,3618.6,0.79561148]
[1762200695573,0.72828,3618.5,3618.4,1e-08]
[1762200695771,1.02780645,3618.5,3618.4,1e-08]
[1762200696572,1.02780645,3618.5,3618.4,7.69e-06]
[1762200697172,0.72828,3618.5,3618.4,7.69e-06]
[1762200697672,1.02770985,3618.5,3618.4,7.69e-06]
[1762200700278,0.72828,3618.5,3618.4,7.69e-06]
[1762200702378,0.49758,3618.5,3618.4,0.23120769]
[1762200702579,0.49748,3619.2,3619.1,0.2312]
[1762200704775,0.49748,3619.2,3619.1,0.72869]
[1762200704979,0.49748,3619.2,3619.1,0.2312]
[1762200706381,1.24319,3620.7,3620.0,0.1425]
[1762200706573,0.49735,3620.1,3620.0,0.3659]
[1762200706981,0.49742,3619.6,3619.5,0.1425]
[1762200708182,0.49742,3619.6,3619.5,0.3659]
[1762200708381,1.24343,3620.1,3619.5,0.3659]
[1762200708581,1.24331,3620.4,3619.7,0.2234]
[1762200708582,0.49741,3619.8,3619.7,0.2234]
[1762200711882,0.49741,3619.8,3619.7,0.72081]
[1762200712184,0.49741,3619.8,3619.7,0.2234]
[1762200713286,0.49741,3619.8,3619.7,0.72081]
[1762200713783,1.24336,3620.2,3619.5,0.1425]
[1762200713784,0.49738,3619.9,3619.8,0.72078]
[1762200713982,0.49737,3620.0,3619.9,0.72077]
[1762200714285,0.00239105,3620.6,3620.5,0.3174]
[1762200714491,0.00239105,3620.6,3620.5,0.8147]
[1762200714785,0.49967105,3620.6,3620.5,0.8147]
[1762200714983,0.00239105,3620.6,3620.5,0.8147]
[1762200717288,0.1379,3620.5,3619.4,1.96223895]
[1762200717592,0.72782,3619.7,3619.6,0.49742]
[1762200717791,0.49743,3619.6,3619.1,1.24373]
[1762200718188,0.49743,3619.6,3619.5,0.2234]
[1762200719588,1.24358,3619.6,3619.0,0.4975]
[1762200719793,1.24358,3619.6,3618.9,10.038]
[1762200720294,0.49748,3619.3,3619.2,0.72087]
[1762200720793,0.1379,3620.0,3619.0,1.24376]
[1762200720988,0.1379,3620.0,3618.9,10.038]
[1762200720989,1.24333,3620.3,3619.4,1.24363]
[1762200721182,0.49739,3619.9,3619.3,1.24365]
[1762200721382,0.4974,3619.8,3619.7,0.2234]
[1762200721587,0.4974,3619.8,3619.2,0.1009]
[1762200721588,0.49746,3619.3,3619.2,0.49747]
[1762200721784,0.4975,3619.0,3618.9,10.038]
[1762200721990,0.1379,3619.5,3619.0,0.49749]
[1762200722287,0.49748,3619.2,3619.1,0.49748]
[1762200722488,0.4975,3619.0,3618.9,10.038]
[1762200722894,0.49749,3619.2,3619.0,0.49749]
[1762200723189,0.49749,3619.2,3618.9,10.038]
[1762200723383,0.49749,3619.1,3619.0,0.2234]
[1762200723695,0.49749,3619.1,3619.0,0.7209]
[1762200723992,0.49749,3619.1,3619.0,0.2234]
[1762200724590,0.4975,3619.0,3618.9,10.53552]
[1762200724790,0.49757,3618.6,3618.4,7.69e-06]
[1762200725091,0.49757,3618.5,3618.4,7.69e-06]
[1762200726090,0.49757,3618.5,3618.4,0.49759769]
[1762200726786,0.1379,3619.0,3618.4,7.69e-06]
[1762200726988,0.4975,3619.0,3618.9,0.2234]
[1762200727291,0.1379,3619.5,3619.0,0.49749]
[1762200727292,0.49746,3619.3,3619.0,0.49749]
[1762200727497,0.49748,3619.2,3619.0,0.49749]
[1762200727694,0.49749,3619.1,3619.0,0.49749]
[1762200727895,0.49751,3619.0,3618.9,0.49752]
[1762200728398,0.49749,3619.1,3619.0,0.49749]
[1762200728794,0.1379,3619.5,3618.5,0.1009]
[1762200729097,0.49752,3618.9,3618.8,0.49753]
[1762200729298,0.1379,3619.5,3618.5,0.1009]
[1762200729789,0.1379,3619.5,3618.4,7.69e-06]
[1762200729990,0.49755,3618.7,3618.4,0.49758769]
[1762200730193,0.49757,3618.5,3618.4,7.69e-06]
[1762200730491,0.63547,3618.5,3618.4,7.69e-06]
[1762200732801,0.49775,3617.2,3617.1,10.013]
[1762200733102,0.1379,3618.0,3617.1,11.25739]
[1762200733297,1.24398,3618.4,3617.1,11.25739]
[1762200733505,0.49768,3617.8,3617.7,0.2234]
[1762200733700,0.50031314,3617.8,3617.7,0.2253428]
[1762200733901,0.50031314,3617.8,3617.7,0.0019428]
[1762200734406,0.00263314,3617.8,3617.7,0.7230228]
[1762200734594,0.50030314,3617.8,3617.7,0.2253428]
[1762200734801,0.74000314,3617.8,3617.7,0.0019428]
[1762200735200,0.50030314,3617.8,3617.7,0.0019428]
[1762200736104,0.50030314,3617.8,3617.7,0.4996228]
[1762200736299,0.50030314,3617.8,3617.7,0.0019428]
[1762200736506,0.74000314,3617.8,3617.7,0.0019428]
[1762200737705,0.00263314,3617.8,3617.7,0.4996228]
[1762200738199,0.50030314,3617.8,3617.7,0.4996228]
[1762200738602,0.00263314,3617.8,3617.7,0.7320228]
[1762200739307,0.00263314,3617.8,3617.7,10.7320228]
[1762200740501,0.49757,3618.5,3617.7,10.7320228]
[1762200740502,3.824,3618.9,3618.1,1.24408]
[1762200740702,0.49755,3618.7,3618.6,0.72995]
[1762200741108,0.49755,3618.7,3618.6,0.2324]
[1762200741709,0.49755,3618.7,3618.3,9.996]
[1762200741710,0.73729,3618.4,3618.3,9.996]
[1762200741902,0.73729,3618.4,3618.3,10.4936]
[1762200742504,0.73737,3617.8,3617.1,0.49776]
[1762200742805,0.73737,3617.8,3617.0,0.49778]
[1762200743406,0.73737,3617.8,3616.9,0.49779]
[1762200743604,0.49781,3616.8,3616.7,0.2324]
[1762200743806,0.1449,3617.4,3617.0,0.49778]
[1762200744206,0.1449,3617.4,3616.9,0.49779]
[1762200744403,1.24422,3617.7,3617.0,0.49778]
[1762200744608,0.49775,3617.3,3617.2,0.49775]
[1762200744803,0.49775,3617.2,3617.1,0.2324]
[1762200745004,0.49777,3617.1,3617.0,0.00217109]
[1762200745204,0.73747,3617.1,3617.0,0.00217109]
[1762200745400,0.73756,3616.4,3616.3,8.263]
[1762200745603,1.24463,3616.5,3615.7,0.49795]
[1762200745804,0.49795,3615.8,3615.6,0.2324]
[1762200746407,0.49795,3615.8,3615.6,0.73037]
[1762200746610,0.50047866,3615.8,3615.6,0.23543559]
[1762200747302,0.50047866,3615.8,3615.6,0.73340559]
[1762200747710,0.00252866,3615.8,3615.6,0.73340559]
[1762200748521,0.00252866,3615.8,3615.7,0.2324]
[1762200749614,0.49796,3615.7,3615.6,0.00303559]
[1762200750212,0.50048866,3615.8,3615.6,0.00303559]
[1762200751214,0.50048866,3615.8,3615.6,0.50100559]
[1762200752013,0.50048866,3615.8,3615.6,0.00303559]
[1762200752319,0.2414,3615.7,3615.6,0.00303559]
[1762200752514,0.73936,3615.7,3615.6,0.00303559]
[1762200753221,0.73936,3615.7,3615.6,0.50101559]
[1762200753416,0.00252866,3615.8,3615.7,0.72976]
[1762200753816,0.49796,3615.7,3615.6,0.50100559]
[1762200754017,0.49796,3615.7,3615.6,0.00303559]
[1762200754321,0.73936,3615.7,3615.6,0.00303559]
[1762200754710,0.50048866,3615.8,3615.6,0.00303559]
[1762200754915,0.73936,3615.7,3615.6,0.00303559]
[1762200769032,0.00252866,3615.8,3615.7,0.73156]
[1762200769535,0.74347866,3615.8,3615.7,0.49796]
[1762200769733,0.00252866,3615.8,3615.7,0.73156]
[1762200770132,0.74096,3615.7,3615.6,0.00303559]
[1762200772128,0.00252866,3615.8,3615.7,0.73156]
[1762200772329,0.00252866,3615.8,3615.7,0.2336]
[1762200772536,0.00252866,3615.8,3615.7,0.73156]
[1762200772732,0.74096,3615.7,3615.6,0.00303559]
[1762200772936,0.74096,3615.7,3615.6,0.50101559]
[1762200774234,0.74096,3615.7,3615.6,0.00303559]
[1762200774429,0.74109,3614.8,3614.7,0.0276652]
[1762200774628,0.61436,3615.0,3614.9,0.49807]
[1762200774829,0.49804,3615.1,3615.0,0.73166]
[1762200775131,0.49803,3615.3,3615.1,0.49804]
[1762200775326,0.27813052,3615.2,3614.7,0.0276652]
[1762200775528,0.49809,3614.9,3614.7,0.5257652]
[1762200775732,0.74109,3614.9,3614.8,0.49809]
[1762200775934,0.243,3614.9,3614.8,0.49809]
[1762200776336,0.74107,3614.9,3614.7,0.03071287]
[1762200776739,0.243,3614.9,3614.8,0.49809]
[1762200777432,0.49805,3615.1,3614.7,0.03071287]
[1762200777433,0.1163,3615.5,3614.7,0.03071287]
[1762200777633,0.49803,3615.2,3614.7,1.27595287]
[1762200777935,0.74103,3615.2,3615.1,0.49803]
[1762200778438,1.01904428,3615.2,3615.1,0.49803]
[1762200778635,0.74103,3615.2,3615.1,0.49803]
[1762200779040,0.49805,3615.1,3615.0,0.49806]
[1762200779541,0.243,3615.3,3615.2,0.49803]
[1762200779741,0.49804,3615.2,3615.0,0.49805]
[1762200779941,0.49805,3615.1,3614.7,0.03071287]
[1762200780236,0.1163,3615.5,3614.9,0.49807]
[1762200780237,0.49806,3615.0,3614.9,0.49807]
[1762200780940,0.74104,3615.2,3615.1,0.49803]
[1762200782636,0.87586,3615.0,3614.8,0.49808]
[1762200782843,0.74107,3614.9,3614.8,0.49808]
[1762200783343,0.243,3614.9,3614.8,0.49808]
[1762200783637,0.74118,3614.1,3613.9,1.96223895]
[1762200783837,0.1288,3614.5,3613.7,1.2456]
[1762200784048,0.243,3614.9,3614.8,0.49809]
[1762200784237,0.74109,3614.8,3614.2,1.96223895]
[1762200784543,0.74115,3614.4,3614.3,0.49816]
[1762200784741,0.49811,3614.6,3614.5,0.49812]
[1762200784933,0.49813,3614.5,3614.4,0.2336]
[1762200785534,0.74113,3614.5,3614.4,0.73174]
[1762200785741,0.49809,3614.8,3614.7,0.4981]
[1762200786042,0.4981,3614.7,3614.6,0.49811]
[1762200786237,0.49813,3614.5,3614.3,0.00311845]
[1762200786638,0.243,3614.9,3614.4,1.24536]
[1762200786935,0.741,3615.4,3615.3,0.49802]
[1762200787134,0.1163,3615.5,3615.1,0.49804]
[1762200787437,0.49796,3615.7,3615.6,0.49797]
[1762200787739,0.00252866,3615.8,3615.7,0.73156]
[1762200788639,0.00252866,3615.8,3615.7,0.2336]
[1762200789044,1.24492,3615.7,3615.0,1.96223895]
[1762200789342,1.24492,3615.7,3614.5,0.14]
[1762200789343,0.49806,3615.1,3614.9,0.49807]
[1762200789538,0.7411,3614.7,3614.6,1.96223895]
[1762200789737,0.4981,3614.7,3614.6,0.2336]
[1762200789942,0.4981,3614.7,3614.6,0.73171]
[1762200790137,0.49809,3614.8,3614.7,0.7317]
[1762200790338,0.1348,3615.5,3614.8,0.49808]
[1762200790339,0.49806,3615.0,3614.8,0.49808]
[1762200790538,0.49807,3614.9,3614.8,0.73168]
[1762200792044,0.1348,3615.0,3614.4,1.96223895]
[1762200792245,0.1348,3615.0,3614.3,0.00311845]
[1762200792246,0.49812,3614.6,3614.5,0.49813]
[1762200792746,0.74114,3614.4,3614.3,0.00311845]
[1762200792932,0.1348,3615.0,3614.4,0.49814]
[1762200793140,0.1348,3615.0,3614.3,0.00311845]
[1762200793341,0.4981,3614.7,3614.6,0.49811]
[1762200793537,0.49813,3614.5,3614.4,0.49813]
[1762200794039,0.49814,3614.4,3614.3,0.00311845]
[1762200794839,0.49814,3614.4,3614.3,0.50127845]
[1762200795035,0.1348,3615.0,3614.6,0.49811]
[1762200795241,0.4981,3614.7,3614.6,0.49811]
[1762200795741,0.49812,3614.6,3614.4,0.49814]
[1762200795947,0.49812,3614.6,3614.5,0.49813]
[1762200796636,0.49807,3615.0,3614.9,0.2299]
[1762200797038,0.49807,3615.0,3614.9,0.72797]
[1762200797644,1.24505,3615.3,3614.7,0.4981]
[1762200797945,0.1348,3615.5,3614.6,1.24526]
[1762200798136,0.1348,3615.5,3614.9,0.49807]
[1762200798342,1.24743866,3615.8,3614.7,1.24526]
[1762200798539,0.49803,3615.3,3615.2,0.49803]
[1762200798744,0.49804,3615.2,3615.1,0.49804]
[1762200799043,0.49802,3615.3,3615.2,0.49802]
[1762200799438,0.246,3614.4,3614.3,0.00311845]
[1762200799747,0.74414,3614.4,3614.3,0.00311845]
[1762200800148,1.38046,3615.0,3614.3,0.00311845]
[1762200800347,0.49814,3614.4,3614.3,0.23301845]
[1762200800543,0.49814,3614.4,3614.3,0.73117845]
[1762200800945,0.49813,3614.5,3614.3,0.23301845]
[1762200801249,0.49812,3614.6,3614.5,0.2299]
[1762200801644,0.49812,3614.6,3614.5,0.72803]
[1762200802044,0.49812,3614.6,3614.5,0.2299]
[1762200802245,0.49812,3614.6,3614.5,0.72803]
[1762200802446,0.49812,3614.6,3614.5,0.2299]
[1762200802647,0.49813,3614.5,3614.4,0.49814]
[1762200802847,0.1353,3615.5,3614.5,0.1364]
[1762200803048,1.24485,3615.9,3615.3,0.49801]
[1762200803449,0.1348,3616.0,3615.1,1.24512]
[1762200803653,0.1348,3616.0,3615.6,0.49797]
[1762200803851,0.74397,3615.7,3615.6,0.49798]
[1762200804049,0.49798,3615.6,3615.4,0.498]
[1762200804354,0.49798,3615.6,3615.5,0.49799]
[1762200804548,1.37962,3616.0,3615.2,1.96223895]
[1762200804745,1.24495,3615.6,3614.9,1.96223895]
[1762200804944,0.49805,3615.1,3615.0,0.49806]
[1762200805355,0.1353,3615.5,3614.8,1.96223895]
[1762200805356,0.49807,3614.9,3614.8,1.96223895]
[1762200805653,1.24507,3615.3,3614.7,0.4981]
[1762200805654,0.49808,3614.8,3614.7,0.4981]
[1762200806554,0.49811,3614.6,3614.5,1.96223895]
[1762200806751,0.4981,3614.7,3614.4,1.96223895]
[1762200807055,0.4981,3614.7,3614.5,0.49813]
[1762200807456,0.4981,3614.7,3614.6,0.49812]
[1762200807653,0.49813,3614.5,3614.4,1.96223895]
[1762200807853,0.49813,3614.5,3614.3,0.00311845]
[1762200808059,0.1353,3615.0,3614.6,0.49811]
[1762200808355,0.4981,3614.7,3614.6,0.2337]
[1762200808556,0.1353,3615.0,3614.6,0.73181]
[1762200808755,0.4981,3614.7,3614.6,0.73181]
[1762200809057,0.4981,3614.7,3614.6,0.2337]
[1762200809852,0.49814,3614.5,3614.3,0.50126845]
[1762200810048,0.49814,3614.5,3614.4,0.49814]
[1762200810658,0.49814,3614.4,3614.3,0.23681845]
[1762200810853,0.72024,3614.4,3614.3,0.00311845]
[1762200811854,0.1353,3615.0,3614.5,0.2337]
[1762200812050,0.4981,3614.7,3614.3,0.00311845]
[1762200812453,0.4981,3614.7,3614.3,1.9653574]
[1762200812660,0.49806,3614.9,3614.3,1.9653574]
[1762200812855,0.1353,3615.0,3614.6,0.49811]
[1762200813160,0.49809,3614.8,3614.7,0.49809]
[1762200813462,0.49807,3614.9,3614.7,0.49808]
[1762200813662,0.49808,3614.8,3614.7,0.49808]
[1762200814662,0.1353,3615.0,3614.8,0.49808]
[1762200814956,0.498,3615.4,3615.2,0.49803]
[1762200815160,0.49801,3615.3,3615.2,0.49803]
[1762200815360,0.1353,3615.5,3615.0,0.1364]
[1762200815551,0.49801,3615.3,3615.1,0.49802]
[1762200815755,0.72011,3615.3,3615.2,0.49802]
[1762200815951,0.72011,3615.3,3615.0,0.1364]
[1762200815952,0.49799,3615.5,3615.3,0.498]
[1762200816157,0.2221,3615.6,3615.5,0.49798]
[1762200816357,0.72007,3615.6,3615.5,0.49798]
[1762200816556,0.2221,3615.6,3615.5,0.49798]
[1762200816762,0.00252866,3615.8,3615.3,0.498]
[1762200816763,0.49799,3615.5,3615.3,0.498]
[1762200816962,0.49799,3615.5,3615.4,0.49799]
[1762200817263,0.00252866,3615.8,3615.6,0.49797]
[1762200817264,0.49795,3615.7,3615.6,0.49797]
[1762200817463,0.00252866,3615.8,3615.7,0.73165]
[1762200817764,0.50046866,3615.8,3615.7,0.2337]
[1762200817965,0.50046866,3615.8,3615.7,0.73165]
[1762200818365,0.498,3615.4,3615.2,1.96223895]
[1762200818667,0.49798,3615.5,3615.1,1.96223895]
[1762200818967,0.49798,3615.5,3615.0,0.1364]
[1762200818968,0.49798,3615.5,3615.3,0.49801]
[1762200819565,0.49798,3615.5,3615.4,0.49799]
[1762200821066,0.72007,3615.6,3615.5,0.49798]
[1762200822072,0.49795,3615.7,3615.6,0.49797]
[1762200822375,0.00252866,3615.8,3615.7,0.49795]
[1762200822677,0.00252866,3615.8,3615.7,0.73165]
[1762200823172,0.72256866,3615.8,3615.6,0.49797]
[1762200823471,0.50046866,3615.8,3615.7,0.49795]
[1762200823670,0.50046866,3615.8,3615.7,0.73165]
[1762200825276,0.00252866,3615.8,3615.7,0.73165]
[1762200826477,0.00252866,3615.8,3615.7,2.69388895]
[1762200828278,0.1353,3617.0,3616.5,0.2298]
[1762200828478,0.49782,3616.7,3616.6,0.72763]
[1762200828982,0.49785,3616.4,3616.2,9.993]
[1762200829174,0.73805,3616.4,3616.3,0.49787]
[1762200829477,0.00289532,3616.4,3616.3,0.72767]
[1762200830077,0.50074532,3616.4,3616.3,0.2298]
[1762200830477,0.2402,3616.3,3615.7,2.18213092]
[1762200830682,0.73817,3615.6,3615.5,1.96223895]
[1762200830876,0.73819,3615.5,3615.4,0.49799]
[1762200831076,0.2402,3615.5,3615.4,0.49799]
[1762200831477,0.49797,3615.6,3615.5,0.49798]
[1762200831678,0.1472,3616.0,3615.7,0.49795]
[1762200831880,0.49793,3615.9,3615.8,0.49793]
[1762200832281,0.49795,3615.8,3615.7,0.72775]
[1762200832787,0.49795,3615.8,3615.7,0.2298]
[1762200832983,0.49795,3615.8,3615.7,0.72775]
[1762200833183,0.49796,3615.7,3615.3,0.21748746]
[1762200833383,0.73816,3615.7,3615.6,0.49796]
[1762200833982,0.49794,3615.8,3615.7,0.49794]
[1762200834182,0.1472,3616.0,3615.5,0.1178]
[1762200834383,0.49794,3615.8,3615.7,0.72774]
[1762200834585,0.49794,3615.8,3615.7,0.2298]
[1762200834786,0.49791,3616.1,3615.5,0.1178]